bitfinex/quotes_SOLUSD_20250829
["timestamp","ask_amount","ask_price","bid_price","bid_amount"]
[1756494510741,10.46683815,203.84,203.83,20.0]
[1756494511248,9.77683815,203.88,203.83,20.0]
[1756494511435,9.77683815,203.84,203.81,20.0]
[1756494511641,9.83683815,203.82,203.79,20.0]
[1756494511840,9.77683815,203.8,203.79,20.0]
[1756494512048,10.46683815,203.8,203.79,20.0]
[1756494512243,10.46683815,203.8,203.75,20.0]
[1756494512449,9.77683815,203.76,203.75,20.0]
[1756494512645,10.46683815,203.76,203.75,20.0]
[1756494512948,4.96632845,203.82,203.77,20.0]
[1756494512949,0.75,203.82,203.77,20.0]
[1756494513262,9.77683815,203.78,203.77,20.0]
[1756494513469,0.69,203.81,203.77,20.0]
[1756494513630,9.77683815,203.78,203.77,20.0]
[1756494514262,9.77683815,203.8,203.79,20.0]
[1756494515872,10.46683815,203.8,203.77,20.0]
[1756494516037,9.77683815,203.78,203.77,20.0]
[1756494516238,10.46683815,203.78,203.77,20.0]
[1756494516664,9.77683815,203.78,203.77,20.0]
[1756494517151,0.06,203.82,203.77,20.0]
[1756494517475,9.77683815,203.78,203.77,20.0]
[1756494517639,0.75,203.82,203.77,24.90748183]
[1756494517841,0.75,203.82,203.81,20.0]
[1756494518040,9.83683815,203.82,203.81,20.0]
[1756494518547,10.52683815,203.82,203.81,20.0]
[1756494519367,15.43315792,203.82,203.79,20.0]
[1756494519571,9.77683815,203.8,203.79,20.0]
[1756494519771,10.46683815,203.8,203.77,20.0]
[1756494519954,9.77683815,203.78,203.77,20.0]
[1756494520147,10.46683815,203.78,203.73,20.0]
[1756494520344,9.77683815,203.74,203.73,20.0]
[1756494520763,10.46683815,203.74,203.71,20.0]
[1756494521081,9.77683815,203.76,203.68,20.0]
[1756494521082,9.77683815,203.72,203.68,20.0]
[1756494521250,9.77683815,203.69,203.68,20.0]
[1756494522546,10.46683815,203.69,203.64,20.0]
[1756494522753,9.77683815,203.65,203.62,20.0]
[1756494523075,9.77683815,203.63,203.62,20.0]
[1756494523373,0.69,203.69,203.66,20.0]
[1756494523577,0.69,203.67,203.64,20.0]
[1756494523775,0.69,203.66,203.64,20.0]
[1756494524343,12.27118514,203.73,203.64,20.0]
[1756494524344,67.3,203.7,203.64,20.0]
[1756494524563,9.77683815,203.65,203.64,20.0]
[1756494525677,10.46683815,203.65,203.62,20.0]
[1756494525888,9.77683815,203.63,203.6,20.0]
[1756494526048,9.77683815,203.61,203.6,20.0]
[1756494527880,0.69,203.73,203.6,34.6884295]
[1756494528179,9.77683815,203.71,203.7,20.0]
[1756494528381,9.77683815,203.75,203.72,20.0]
[1756494528685,9.77683815,203.76,203.74,20.0]
[1756494528980,9.77683815,203.75,203.74,20.0]
[1756494529349,9.77683815,203.78,203.74,20.0]
[1756494529554,0.75,203.82,203.78,20.0]
[1756494529773,9.77683815,203.8,203.78,20.0]
[1756494529949,9.77683815,203.79,203.78,20.0]
[1756494530149,10.46683815,203.79,203.76,20.0]
[1756494530761,0.06,203.76,203.74,20.0]
[1756494531081,0.06,203.76,203.74,34.68500971]
[1756494531484,0.06,203.76,203.75,9.77683815]
[1756494532173,0.06,203.76,203.74,24.90817156]
[1756494532682,0.06,203.76,203.74,20.0]
[1756494533054,9.77683815,203.75,203.74,20.0]
[1756494533384,10.46683815,203.75,203.74,20.0]
[1756494534980,9.77683815,203.75,203.74,20.0]
[1756494535166,0.06,203.76,203.74,24.90817953]
[1756494536285,0.06,203.76,203.75,9.77683815]
[1756494536659,0.06,203.76,203.75,14.68481361]
[1756494539078,9.77683815,203.86,203.84,20.0]
[1756494539276,9.77683815,203.87,203.84,20.0]
[1756494539570,9.77683815,203.86,203.84,20.0]
[1756494539772,9.77683815,203.85,203.84,20.0]
[1756494539962,17.16275191,203.93,203.84,20.0]
[1756494540163,10.46683815,203.85,203.84,20.0]
[1756494540378,10.46683815,203.85,203.78,41.28]
[1756494540379,10.46683815,203.85,203.82,20.0]
[1756494540576,9.77683815,203.83,203.82,20.0]
[1756494540787,10.43683815,203.83,203.8,20.0]
[1756494541082,9.77683815,203.81,203.8,20.0]
[1756494541387,10.43683815,203.81,203.78,20.0]
[1756494541590,9.77683815,203.79,203.78,20.0]
[1756494541790,10.43683815,203.79,203.78,20.0]
[1756494542163,4.90583994,203.84,203.78,20.0]
[1756494542462,9.77683815,203.79,203.78,20.0]
[1756494542674,10.43683815,203.79,203.78,20.0]
[1756494542874,9.77683815,203.8,203.78,20.0]
[1756494543086,9.77683815,203.81,203.8,20.0]
[1756494543378,9.77683815,203.81,203.78,4.90723]
[1756494543379,9.77683815,203.81,203.78,20.0]
[1756494543581,9.77683815,203.79,203.78,20.0]
[1756494543878,10.43683815,203.79,203.78,20.0]
[1756494544682,67.14,203.86,203.78,20.0]
[1756494544988,9.77683815,203.79,203.78,20.0]
[1756494545283,10.43683815,203.79,203.74,20.0]
[1756494545458,26.0,203.83,203.71,20.0]
[1756494545459,9.77683815,203.75,203.71,20.0]
[1756494545663,9.77683815,203.76,203.75,20.0]
[1756494545860,10.43683815,203.76,203.75,20.0]
[1756494546067,0.66,203.8,203.75,20.0]
[1756494546389,0.66,203.8,203.78,20.0]
[1756494546590,10.43683815,203.79,203.78,20.0]
[1756494546963,9.77683815,203.79,203.78,20.0]
[1756494547179,0.66,203.82,203.8,20.0]
[1756494547376,10.43683815,203.81,203.8,20.0]
[1756494547771,10.43683815,203.81,203.78,20.0]
[1756494548087,9.77683815,203.79,203.78,20.0]
[1756494548388,10.43683815,203.79,203.78,20.0]
[1756494550782,0.66,203.79,203.78,20.0]
[1756494550986,0.06,203.82,203.78,20.0]
[1756494551291,9.77683815,203.79,203.78,20.0]
[1756494551597,10.43683815,203.79,203.78,20.0]
[1756494552391,0.66,203.79,203.78,20.0]
[1756494552602,0.72,203.82,203.78,20.0]
[1756494552897,0.72,203.82,203.8,20.0]
[1756494553867,9.77683815,203.81,203.8,20.0]
[1756494554074,9.83683815,203.82,203.8,20.0]
[1756494554276,0.06,203.82,203.8,34.68352056]
[1756494554587,0.06,203.82,203.81,9.77683815]
[1756494555308,0.06,203.82,203.81,14.68336874]
[1756494555612,0.06,203.82,203.81,4.90653059]
[1756494558089,0.06,203.82,203.8,20.0]
[1756494558608,10.43683815,203.81,203.78,20.0]
[1756494558816,0.06,203.82,203.8,20.0]
[1756494559105,9.77683815,203.81,203.8,20.0]
[1756494559402,10.43683815,203.81,203.8,20.0]
[1756494560208,0.06,203.82,203.8,20.0]
[1756494560392,10.43683815,203.81,203.8,20.0]
[1756494560789,10.43683815,203.81,203.78,20.0]
[1756494560989,4.96646137,203.82,203.8,20.0]
[1756494561508,0.66,203.81,203.8,20.0]
[1756494561879,13.59559401,203.8,203.76,0.03]
[1756494562083,0.66,203.79,203.76,0.03]
[1756494562383,9.77683815,203.78,203.76,0.03]
[1756494562691,9.77683815,203.79,203.77,20.0]
[1756494562884,9.77683815,203.81,203.79,20.0]
[1756494563091,10.43683815,203.8,203.79,20.0]
[1756494564305,9.83683815,203.82,203.79,20.0]
[1756494564491,0.06,203.82,203.81,20.0]
[1756494564677,9.83683815,203.82,203.81,20.0]
[1756494565386,10.49683815,203.82,203.81,20.0]
[1756494565694,10.49683815,203.82,203.76,9.80683815]
[1756494565695,15.40312801,203.82,203.78,20.0]
[1756494566014,9.77683815,203.79,203.78,20.0]
[1756494566201,15.34385027,203.79,203.76,0.03]
[1756494566506,9.77683815,203.77,203.76,0.03]
[1756494566875,10.43683815,203.77,203.76,0.03]
[1756494567994,10.43683815,203.77,203.76,20.03]
[1756494568190,4.90656379,203.81,203.76,20.03]
[1756494568391,9.77683815,203.77,203.76,20.03]
[1756494570008,0.66,203.79,203.76,20.03]
[1756494570227,9.77683815,203.77,203.76,20.03]
[1756494571210,10.46683815,203.77,203.76,20.03]
[1756494572811,5.59749374,203.77,203.76,0.03]
[1756494573112,25.15117004,203.77,203.73,0.03]
[1756494573281,9.77683815,203.74,203.65,20.0]
[1756494573482,9.77683815,203.68,203.67,20.0]
[1756494573682,0.69,203.71,203.69,20.0]
[1756494573913,10.46683815,203.7,203.69,20.0]
[1756494574093,9.77683815,203.7,203.66,20.0]
[1756494574293,9.77683815,203.67,203.66,20.0]
[1756494574511,10.46683815,203.67,203.66,20.0]
[1756494575389,0.69,203.67,203.66,20.0]
[1756494575614,10.46683815,203.67,203.66,20.0]
[1756494575807,0.69,203.72,203.66,20.0]
[1756494576011,9.77683815,203.67,203.66,20.0]
[1756494577095,15.37674142,203.67,203.63,20.0]
[1756494577409,9.77683815,203.64,203.63,20.0]
[1756494578016,4.90945657,203.69,203.65,20.0]
[1756494578017,0.69,203.69,203.65,20.0]
[1756494578188,4.90917618,203.71,203.65,20.0]
[1756494578189,0.69,203.68,203.65,20.0]
[1756494578394,0.69,203.67,203.65,20.0]
[1756494578918,0.69,203.69,203.65,20.0]
[1756494579102,9.77683815,203.66,203.65,20.0]
[1756494579610,9.77683815,203.66,203.63,20.0]
[1756494579907,9.77683815,203.64,203.63,20.0]
[1756494580106,10.46683815,203.64,203.63,20.0]
[1756494580425,10.46683815,203.64,203.6,20.03]
[1756494580426,4.91086775,203.63,203.6,20.03]
[1756494580620,9.77683815,203.61,203.6,20.03]
[1756494580918,10.46683815,203.61,203.6,20.03]
[1756494581103,10.46683815,203.61,203.6,0.03]
[1756494582790,0.69,203.65,203.63,20.0]
[1756494582986,9.77683815,203.65,203.63,20.0]
[1756494583219,0.69,203.67,203.66,20.0]
[1756494583711,0.69,203.69,203.66,20.0]
[1756494583917,0.69,203.68,203.66,20.0]
[1756494584124,4.90845727,203.73,203.66,20.0]
[1756494584421,0.69,203.71,203.69,20.0]
[1756494584616,0.69,203.7,203.69,20.0]
[1756494585230,0.69,203.72,203.69,20.0]
[1756494585402,0.69,203.75,203.69,24.90939625]
[1756494585720,0.69,203.75,203.74,20.0]
[1756494585919,10.46683815,203.75,203.72,20.0]
[1756494586107,9.77683815,203.73,203.72,20.0]
[1756494587402,0.69,203.74,203.72,20.0]
[1756494587729,9.77683815,203.73,203.72,20.0]
[1756494588227,0.69,203.74,203.72,20.0]
[1756494588421,9.77683815,203.76,203.74,20.0]
[1756494588629,9.77683815,203.77,203.75,4.90797546]
[1756494588828,0.69,203.81,203.76,20.0]
[1756494589015,0.06,203.82,203.78,20.0]
[1756494589209,9.77683815,203.79,203.78,20.0]
[1756494589807,10.46683815,203.79,203.78,20.0]
[1756494590509,10.46683815,203.79,203.76,20.0]
[1756494590706,9.77683815,203.78,203.76,20.0]
[1756494590914,0.69,203.79,203.76,20.0]
[1756494591222,9.77683815,203.78,203.76,20.0]
[1756494591396,9.77683815,203.77,203.76,20.0]
[1756494591802,9.77683815,203.78,203.76,20.0]
[1756494592729,4.90678773,203.8,203.76,20.0]
[1756494592929,0.69,203.8,203.76,20.0]
[1756494593225,9.77683815,203.79,203.78,20.0]
[1756494593801,0.69,203.81,203.78,20.0]
[1756494594010,9.77683815,203.79,203.78,20.0]
[1756494594425,0.06,203.82,203.78,20.0]
[1756494594633,9.77683815,203.8,203.78,20.0]
[1756494594831,0.75,203.82,203.78,20.0]
[1756494595146,9.77683815,203.8,203.78,20.0]
[1756494595630,0.69,203.81,203.8,20.0]
[1756494596230,10.46683815,203.81,203.8,20.0]
[1756494596408,9.77683815,203.81,203.8,20.0]
[1756494597533,0.06,203.82,203.8,20.0]
[1756494597711,10.46683815,203.81,203.8,20.0]
[1756494598326,15.37336874,203.81,203.78,20.0]
[1756494598529,0.69,203.8,203.78,20.0]
[1756494598737,0.69,203.79,203.78,20.0]
[1756494599041,10.46683815,203.79,203.78,20.0]
[1756494599740,10.46683815,203.79,203.76,20.0]
[1756494600037,9.77683815,203.77,203.76,20.0]
[1756494600410,15.37433189,203.77,203.73,20.0]
[1756494600614,9.77683815,203.74,203.73,20.0]
[1756494601021,10.44683815,203.74,203.73,20.0]
[1756494601222,5.57749374,203.77,203.73,20.0]
[1756494601425,9.77683815,203.74,203.73,20.0]
[1756494602044,0.67,203.79,203.73,20.0]
[1756494602212,50.07683815,203.8,203.78,20.0]
[1756494602521,0.73,203.82,203.8,20.0]
[1756494602721,9.77683815,203.81,203.8,20.0]
[1756494603137,0.06,203.82,203.8,20.0]
[1756494603713,9.83683815,203.82,203.8,20.0]
[1756494603930,0.67,203.81,203.8,20.0]
[1756494604138,0.06,203.82,203.8,20.0]
[1756494604609,9.77683815,203.81,203.8,20.0]
[1756494604814,0.06,203.82,203.8,20.0]
[1756494605014,9.83683815,203.81,203.8,20.0]
[1756494605317,10.50683815,203.81,203.77,20.0]
[1756494605637,9.77683815,203.78,203.72,0.03]
[1756494605833,9.77683815,203.73,203.72,0.03]
[1756494606037,0.67,203.76,203.72,0.03]
[1756494606252,4.90797546,203.75,203.72,0.03]
[1756494606431,9.77683815,203.73,203.72,0.03]
[1756494607244,5.5777584,203.76,203.72,0.03]
[1756494607526,5.5777584,203.76,203.73,20.0]
[1756494608133,13.65559401,203.82,203.73,20.0]
[1756494608333,26.0,203.77,203.72,0.03]
[1756494608652,9.77683815,203.73,203.72,0.03]
[1756494609151,5.57677134,203.8,203.75,20.0]
[1756494609449,9.77683815,203.78,203.77,20.0]
[1756494609950,0.67,203.8,203.77,20.0]
[1756494610131,9.77683815,203.78,203.77,20.0]
[1756494610640,15.35409106,203.78,203.75,20.0]
[1756494610830,9.77683815,203.76,203.75,20.0]
[1756494611149,5.57725291,203.78,203.75,20.0]
[1756494611350,9.77683815,203.76,203.75,20.0]
[1756494612047,20.2236763,203.76,203.72,0.03]
[1756494612357,9.77683815,203.73,203.72,0.03]
[1756494613035,15.35529542,203.73,203.72,0.03]
[1756494613237,9.77683815,203.73,203.72,0.03]
[1756494613434,0.67,203.84,203.77,20.0]
[1756494613746,9.77683815,203.79,203.77,20.0]
[1756494614444,9.77683815,203.78,203.77,20.0]
[1756494614836,10.44683815,203.78,203.77,20.0]
[1756494615040,10.44683815,203.78,203.72,0.03]
[1756494615041,10.44683815,203.78,203.76,20.0]
[1756494615234,10.44683815,203.77,203.76,20.0]
[1756494615436,9.77683815,203.78,203.76,20.0]
[1756494615839,4.90677134,203.8,203.76,20.0]
[1756494616039,9.77683815,203.79,203.76,20.0]
[1756494616450,9.77683815,203.78,203.76,20.0]
[1756494617129,0.67,203.8,203.76,20.0]
[1756494617336,5.57680431,203.8,203.76,20.0]
[1756494617531,9.77683815,203.79,203.76,20.0]
[1756494618046,4.90680431,203.8,203.76,20.0]
[1756494618247,9.77683815,203.79,203.76,20.0]
[1756494618445,14.68364079,203.8,203.76,20.0]
[1756494618769,0.06,203.81,203.8,20.0]
[1756494619855,14.74336874,203.81,203.8,20.0]
[1756494620452,5.63653059,203.81,203.8,20.0]
[1756494620637,15.41336874,203.81,203.78,20.0]
[1756494621139,0.73,203.81,203.78,20.0]
[1756494621347,11.04573302,203.81,203.78,20.0]
[1756494621851,0.06,203.81,203.78,20.0]
[1756494622058,0.06,203.81,203.8,20.0]
[1756494622836,0.06,203.81,203.8,30.98590567]
[1756494623435,0.06,203.81,203.8,20.0]
[1756494627740,0.06,203.81,203.8,30.98590567]
[1756494627931,0.06,203.81,203.8,31.05590567]
[1756494628739,0.06,203.81,203.8,37.13504]
[1756494628945,0.06,203.81,203.8,31.05590567]
[1756494631148,0.06,203.81,203.8,30.98590567]
[1756494632449,0.06,203.81,203.8,24.90677134]
[1756494632659,0.06,203.81,203.8,60.28]
[1756494633054,0.06,203.81,203.8,20.0]
[1756494633450,6.07913433,204.0,203.8,50.73063401]
[1756494633666,0.69,203.99,203.94,20.0]
[1756494633869,13.59559401,204.02,203.94,20.0]
[1756494633870,0.69,203.98,203.94,20.0]
[1756494634087,6.76913433,203.97,203.94,20.0]
[1756494634273,6.76913433,203.96,203.94,20.0]
[1756494634595,0.69,203.95,203.94,20.0]
[1756494635083,6.76913433,203.95,203.94,20.0]
[1756494635452,15.30790237,203.95,203.94,20.0]
[1756494636278,15.30790237,203.95,203.92,20.0]
[1756494636573,9.71473984,203.93,203.9,20.0]
[1756494636782,4.9036434,203.93,203.92,20.0]
[1756494636981,4.9036434,203.93,203.9,20.0]
[1756494637281,4.9036434,203.93,203.88,20.0]
[1756494637282,0.69,203.92,203.88,20.0]
[1756494637456,0.69,203.92,203.87,20.0]
[1756494637654,0.69,203.91,203.87,20.0]
[1756494637871,9.71473984,203.88,203.87,20.0]
[1756494638179,10.40473984,203.88,203.83,20.0]
[1756494638365,9.71473984,203.84,203.83,20.0]
[1756494638563,10.40473984,203.84,203.83,20.0]
[1756494638775,15.31054831,203.84,203.8,20.0]
[1756494638971,9.71473984,203.81,203.8,20.0]
[1756494639156,10.40473984,203.81,203.8,20.0]
[1756494640071,10.40473984,203.81,203.76,20.0]
[1756494640276,4.90580847,203.84,203.76,20.0]
[1756494640277,9.71473984,203.77,203.76,20.0]
[1756494640476,10.40473984,203.77,203.76,20.0]
[1756494640673,15.31223358,203.77,203.76,20.0]
[1756494641061,15.31223358,203.77,203.73,20.03]
[1756494641382,4.90749374,203.77,203.74,20.0]
[1756494641682,0.69,203.76,203.73,0.03]
[1756494642283,9.71473984,203.74,203.73,0.03]
[1756494642489,9.71473984,203.74,203.72,0.03]
[1756494642490,49.31033385,203.74,203.7,0.03]
[1756494642679,9.71473984,203.71,203.7,0.03]
[1756494643187,10.40473984,203.71,203.7,0.03]
[1756494643986,26.69,203.74,203.7,0.03]
[1756494644185,9.71473984,203.73,203.71,20.0]
[1756494644558,5.5977784,203.76,203.71,20.0]
[1756494644779,9.71473984,203.72,203.71,20.0]
[1756494645087,0.69,203.75,203.74,20.0]
[1756494645260,10.40473984,203.75,203.74,20.0]
[1756494645459,9.71473984,203.75,203.74,20.0]
[1756494645778,9.71473984,203.76,203.74,20.0]
[1756494646484,9.71473984,203.75,203.74,20.0]
[1756494647988,9.71473984,203.75,203.7,20.03]
[1756494647989,15.3127153,203.75,203.7,20.03]
[1756494648172,9.71473984,203.71,203.7,20.03]
[1756494649562,0.69,203.71,203.7,0.03]
[1756494649791,10.40473984,203.71,203.7,0.03]
[1756494649976,15.31367901,203.71,203.7,0.03]
[1756494650285,28.90927302,203.71,203.69,0.03]
[1756494650481,9.71473984,203.69,203.68,0.03]
[1756494650857,10.40473984,203.69,203.68,0.03]
[1756494652001,5.59942117,203.69,203.68,0.03]
[1756494652161,15.31416101,203.69,203.68,0.03]
[1756494652362,27.58771395,203.69,203.62,20.0]
[1756494652588,9.71473984,203.63,203.6,0.03]
[1756494652773,9.71473984,203.61,203.6,0.03]
[1756494653176,9.71473984,203.64,203.6,0.03]
[1756494653576,0.69,203.63,203.6,0.03]
[1756494654062,4.91110892,203.62,203.6,0.03]
[1756494655561,10.40473984,203.61,203.6,0.03]
[1756494655882,9.71473984,203.61,203.6,0.03]
[1756494656076,9.71473984,203.61,203.6,20.03]
[1756494656777,14.62608997,203.61,203.6,20.03]
[1756494657281,15.31608997,203.61,203.6,0.03]
[1756494657674,27.59446529,203.61,203.56,0.03]
[1756494657886,9.71473984,203.57,203.56,0.03]
[1756494659096,10.40473984,203.57,203.56,0.03]
[1756494660096,15.31705501,203.57,203.56,0.03]
[1756494660296,9.71473984,203.57,203.56,0.03]
[1756494661397,9.71473984,203.58,203.57,20.0]
[1756494662376,10.43473984,203.58,203.56,0.03]
[1756494662576,9.71473984,203.57,203.56,0.03]
[1756494662883,0.72,203.65,203.63,20.0]
[1756494663091,0.72,203.64,203.61,20.0]
[1756494663399,0.72,203.63,203.61,20.0]
[1756494663598,0.72,203.62,203.61,20.0]
[1756494663984,10.43473984,203.62,203.61,20.0]
[1756494664373,0.72,203.64,203.61,20.0]
[1756494664601,9.71473984,203.62,203.61,20.0]
[1756494665415,9.71473984,203.62,203.53,0.03]
[1756494665416,39.59559401,203.54,203.53,0.03]
[1756494665691,13.59559401,203.53,203.46,20.0]
[1756494665893,36.43473984,203.52,203.43,0.2]
[1756494666096,0.72,203.52,203.47,20.0]
[1756494666280,45.9335679,203.52,203.47,20.0]
[1756494666494,0.72,203.51,203.47,20.0]
[1756494666695,0.72,203.5,203.47,20.0]
[1756494667316,9.71473984,203.48,203.47,20.0]
[1756494667613,0.72,203.57,203.5,20.0]
[1756494667786,9.71473984,203.51,203.5,20.0]
[1756494668104,15.496506,203.59,203.53,20.0]
[1756494668310,15.496506,203.59,203.5,5.30389767]
[1756494668311,40.32,203.58,203.55,20.0]
[1756494668490,0.72,203.58,203.55,20.0]
[1756494668691,0.72,203.57,203.55,20.0]
[1756494668892,0.72,203.56,203.53,20.0]
[1756494669100,0.72,203.55,203.53,20.0]
[1756494669409,50.03473984,203.54,203.49,20.0]
[1756494669588,9.71473984,203.5,203.49,20.0]
[1756494670218,14.62874475,203.5,203.49,20.0]
[1756494670594,15.34874475,203.5,203.45,20.0]
[1756494670801,9.71473984,203.46,203.45,20.0]
[1756494670998,10.43473984,203.46,203.45,20.0]
[1756494671314,9.71473984,203.46,203.45,20.0]
[1756494671520,10.43473984,203.46,203.43,20.2]
[1756494671688,9.71473984,203.44,203.43,0.2]
[1756494672191,14.63019402,203.44,203.43,0.2]
[1756494672392,40.32,203.47,203.43,20.2]
[1756494672597,0.72,203.49,203.43,20.2]
[1756494672912,40.32,203.49,203.45,20.0]
[1756494673114,54.22385586,203.52,203.45,20.0]
[1756494673316,0.72,203.49,203.45,20.0]
[1756494673689,0.72,203.49,203.47,20.0]
[1756494674215,9.71473984,203.48,203.47,20.0]
[1756494674588,10.43473984,203.48,203.45,20.0]
[1756494674788,9.71473984,203.46,203.45,20.0]
[1756494675913,5.63376345,203.51,203.45,20.0]
[1756494676113,9.71473984,203.47,203.45,20.0]
[1756494676313,40.32,203.5,203.45,20.0]
[1756494676497,45.95407951,203.5,203.48,20.0]
[1756494676903,0.72,203.49,203.48,20.0]
[1756494677904,13.59559401,203.54,203.48,20.0]
[1756494677905,45.23328059,203.53,203.48,20.0]
[1756494678117,9.71473984,203.49,203.48,20.0]
[1756494678519,45.23348755,203.53,203.5,20.0]
[1756494678707,9.71473984,203.51,203.5,20.0]
[1756494679425,10.43473984,203.51,203.47,20.0]
[1756494679591,9.71473984,203.48,203.45,20.0]
[1756494679797,9.71473984,203.46,203.45,20.0]
[1756494680122,10.43473984,203.46,203.43,20.2]
[1756494680430,9.71473984,203.44,203.43,20.2]
[1756494680996,9.71473984,203.44,203.43,0.2]
[1756494681196,10.43473984,203.44,203.43,0.2]
[1756494681409,50.77473984,203.44,203.43,0.2]
[1756494682322,9.71473984,203.45,203.44,20.0]
[1756494682818,40.34,203.48,203.44,20.0]
[1756494683016,40.34,203.49,203.48,20.0]
[1756494683825,41.06,203.49,203.48,20.0]
[1756494684118,50.77473984,203.49,203.48,20.0]
[1756494684308,55.68898624,203.49,203.46,20.0]
[1756494684616,4.97390321,203.51,203.5,20.0]
[1756494685005,4.97390321,203.51,203.43,0.59]
[1756494685006,5.69390321,203.51,203.48,20.0]
[1756494685402,4.97390321,203.51,203.5,20.0]
[1756494685607,5.69390321,203.51,203.46,20.0]
[1756494685812,9.71473984,203.47,203.46,20.0]
[1756494686010,10.43473984,203.47,203.44,20.0]
[1756494686317,9.71473984,203.45,203.44,20.0]
[1756494686523,9.71473984,203.46,203.44,20.0]
[1756494687690,9.71473984,203.48,203.44,20.39]
[1756494687894,9.71473984,203.5,203.48,20.0]
[1756494688324,9.71473984,203.49,203.48,20.0]
[1756494688789,14.62898624,203.49,203.48,20.0]
[1756494689199,27.63460224,203.49,203.43,0.2]
[1756494689395,9.71473984,203.44,203.43,0.2]
[1756494689728,40.34,203.45,203.44,20.0]
[1756494689896,9.71473984,203.45,203.43,0.2]
[1756494690096,9.71473984,203.44,203.43,0.2]
[1756494690393,15.35019402,203.44,203.43,0.2]
[1756494691826,5.63545418,203.44,203.43,0.2]
[1756494692031,9.71473984,203.44,203.43,0.2]
[1756494692317,9.71473984,203.45,203.44,20.0]
[1756494692815,15.33995242,203.45,203.44,20.0]
[1756494692993,15.33995242,203.45,203.43,0.2]
[1756494693194,10.42473984,203.44,203.43,0.2]
[1756494693794,24.02033385,203.44,203.43,0.2]
[1756494694492,28.93578803,203.44,203.43,0.2]
[1756494694909,37.39711381,203.44,203.43,0.2]
[1756494695928,37.39711381,203.44,203.41,20.0]
[1756494696129,39.59559401,203.4,203.39,1e-08]
[1756494696434,13.59559401,203.39,203.3,20.0]
[1756494696593,13.59559401,203.39,203.27,0.03]
[1756494696594,35.71473984,203.36,203.33,20.0]
[1756494696794,4.91690431,203.38,203.33,20.0]
[1756494697023,4.91690431,203.38,203.35,20.2]
[1756494697024,9.71473984,203.36,203.35,20.2]
[1756494698809,14.63212772,203.36,203.35,20.2]
[1756494699902,9.71473984,203.36,203.35,20.2]
[1756494700404,9.71473984,203.36,203.35,0.2]
[1756494700405,24.02033385,203.36,203.35,0.2]
[1756494700626,28.93772173,203.36,203.35,0.2]
[1756494701006,24.02033385,203.36,203.35,0.2]
[1756494701204,23.31033385,203.36,203.35,0.2]
[1756494701608,9.71473984,203.36,203.35,0.2]
[1756494702025,50.05473984,203.36,203.35,20.2]
[1756494703117,69.27772173,203.36,203.35,0.2]
[1756494703317,95.27772173,203.36,203.35,0.2]
[1756494703825,50.02033385,203.36,203.35,0.2]
[1756494704032,90.36033385,203.36,203.35,0.2]
[1756494704238,4.91569581,203.43,203.36,20.0]
[1756494704545,13.59559401,203.41,203.39,20.0]
[1756494704907,40.34,203.4,203.39,20.0]